bitfinex/quotes_SOLUSD_20240814
["timestamp","ask_amount","ask_price","bid_price","bid_amount"]
[1723602990441,26.9121,144.68,144.59,0.25098]
[1723602990651,20.0,144.68,144.59,0.25098]
[1723602990858,6.9112,144.7,144.65,6.913]
[1723602991059,26.9114,144.69,144.65,6.913]
[1723602991850,20.0,144.69,144.66,6.9125]
[1723602992037,26.9108,144.7,144.66,6.9125]
[1723602992245,26.9108,144.7,144.64,6.9132]
[1723602992739,26.9108,144.7,144.65,6.913]
[1723602992934,20.0,144.7,144.62,22.3668]
[1723602993134,20.0,144.7,144.66,6.9126]
[1723602993367,6.9113,144.69,144.64,6.9133]
[1723602993665,6.9119,144.68,144.63,6.9141]
[1723602994044,6.9114,144.69,144.64,6.9134]
[1723602994470,6.9114,144.69,144.65,6.9131]
[1723602994659,26.9109,144.7,144.65,6.9131]
[1723602994865,28.63896514,144.7,144.65,6.9131]
[1723602995547,21.72806514,144.7,144.63,6.9137]
[1723602996257,20.0,144.7,144.64,6.9136]
[1723602996566,26.9112,144.7,144.65,6.913]
[1723602996774,6.9114,144.69,144.65,6.913]
[1723602997655,26.9109,144.7,144.65,6.913]
[1723602998177,28.63895085,144.7,144.65,6.913]
[1723602998361,26.9109,144.7,144.65,6.913]
[1723602999978,6.9114,144.69,144.65,6.913]
[1723603001478,6.9119,144.68,144.62,22.3668]
[1723603002155,6.9122,144.67,144.62,22.3668]
[1723603002343,6.9139,144.64,144.59,29.6311]
[1723603002568,6.9133,144.65,144.6,6.9154]
[1723603002869,6.9128,144.66,144.61,6.9149]
[1723603003271,6.9124,144.67,144.59,22.7154]
[1723603003749,77.41098,144.66,144.59,22.7154]
[1723603003946,84.63971353,144.66,144.59,22.7154]
[1723603004166,6.9133,144.65,144.6,6.9156]
[1723603004471,84.0728,144.66,144.61,6.9149]
[1723603004659,77.16,144.66,144.6,6.9155]
[1723603004850,1.7287357,144.65,144.6,6.9155]
[1723603005052,1.7287909,144.64,144.6,6.9155]
[1723603005876,8.6424909,144.64,144.6,6.9155]
[1723603006077,6.9137,144.64,144.6,6.9155]
[1723603007172,6.9137,144.64,144.55,22.1033]
[1723603007173,6.9142,144.63,144.55,22.1033]
[1723603007474,8.64407452,144.62,144.57,6.9169]
[1723603008060,6.915,144.62,144.58,6.9165]
[1723603008260,7.03969,144.63,144.59,6.916]
[1723603008778,7.03969,144.63,144.58,6.9164]
[1723603008975,1.72904591,144.62,144.58,6.9164]
[1723603009471,7.03969,144.63,144.58,6.9164]
[1723603010751,7.03969,144.63,144.59,6.916]
[1723603010971,6.9142,144.63,144.59,6.916]
[1723603011368,6.9137,144.64,144.59,6.916]
[1723603011676,6.9137,144.64,144.6,6.9155]
[1723603012686,6.9143,144.63,144.58,6.9161]
[1723603012859,8.64400386,144.62,144.57,6.9169]
[1723603013180,12.87,144.61,144.55,22.1033]
[1723603013387,1.72918187,144.6,144.56,6.9174]
[1723603013557,6.9147,144.62,144.57,6.9168]
[1723603014068,20.03518,144.63,144.58,6.9163]
[1723603014263,20.0,144.62,144.58,6.9163]
[1723603015396,26.9147,144.62,144.57,6.9169]
[1723603015757,20.0,144.62,144.55,29.0208]
[1723603015962,14.59919023,144.61,144.55,29.0208]
[1723603016295,1.72929658,144.6,144.55,22.8469]
[1723603016458,8.64509658,144.6,144.56,6.9174]
[1723603016661,12.87,144.61,144.57,6.9168]
[1723603017080,20.0,144.62,144.55,15.9294]
[1723603017298,20.0,144.62,144.59,6.916]
[1723603017587,20.0,144.63,144.6,6.9154]
[1723603017776,20.0,144.64,144.6,6.9154]
[1723603018573,26.9137,144.64,144.6,6.9154]
[1723603019393,20.0,144.64,144.6,6.9154]
[1723603019686,6.9133,144.65,144.61,6.915]
[1723603021991,6.9133,144.65,144.6,6.9155]
[1723603022700,1.72868082,144.64,144.6,6.9155]
[1723603023388,6.9133,144.65,144.6,6.9155]
[1723603024000,7.22888986,144.67,144.57,0.12549]
[1723603024184,20.0,144.66,144.62,6.9144]
[1723603024503,6.9133,144.65,144.6,6.9155]
[1723603024803,20.0,144.66,144.61,6.915]
[1723603024804,26.9127,144.66,144.61,6.915]
[1723603026506,8.64194386,144.65,144.6,6.9155]
[1723603026689,6.9133,144.65,144.6,6.9155]
[1723603028678,6.9133,144.65,144.61,6.915]
[1723603029806,20.0,144.66,144.62,6.9144]
[1723603030904,26.9128,144.66,144.62,6.9144]
[1723603032309,26.9128,144.66,144.61,6.915]
[1723603037917,20.0,144.66,144.6,12.86]
[1723603038094,20.08823025,144.69,144.62,6.9145]
[1723603038095,20.0,144.68,144.62,6.9145]
[1723603038292,1.7284475,144.67,144.62,6.9145]
[1723603039788,59.5884475,144.67,144.58,12.86]
[1723603039984,0.37647,144.66,144.6,6.9155]
[1723603040203,22.10516518,144.66,144.6,6.9155]
[1723603040888,12.86,144.63,144.56,6.2681]
[1723603041194,1.72895337,144.62,144.56,6.2681]
[1723603041716,6.9142,144.63,144.56,6.2681]
[1723603041891,6.9137,144.64,144.59,6.916]
[1723603042521,6.9137,144.64,144.6,6.9155]
[1723603042705,19.7733,144.65,144.6,6.9155]
[1723603043402,27.60370695,144.66,144.61,6.915]
[1723603043403,27.28927,144.66,144.61,6.915]
[1723603043792,26.9128,144.66,144.61,6.915]
[1723603045312,6.9134,144.65,144.6,6.9155]
[1723603045827,6.9134,144.65,144.61,6.915]
[1723603046426,20.0,144.66,144.62,6.9145]
[1723603046591,12.86,144.68,144.63,6.9137]
[1723603046792,20.0,144.67,144.63,6.9137]
[1723603047711,26.9124,144.67,144.62,6.9146]
[1723603048034,12.86,144.68,144.6,16.3719]
[1723603048035,6.9116,144.69,144.64,6.9136]
[1723603048219,6.9124,144.67,144.62,6.9143]
[1723603048426,1.7284619,144.66,144.62,6.9143]
[1723603048717,6.9124,144.67,144.62,6.9143]
[1723603048924,6.9124,144.67,144.63,6.9141]
[1723603049097,12.86,144.68,144.64,6.9135]
[1723603049296,12.86,144.68,144.61,6.6274]
[1723603049524,6.9137,144.64,144.6,23.2874]
[1723603049698,1.72873178,144.63,144.6,23.2874]
[1723603049906,14.58874094,144.62,144.55,6.4572]
[1723603050212,12.86,144.6,144.55,6.4572]
[1723603050393,1.72930814,144.59,144.55,6.4572]
[1723603050902,1.72930814,144.59,144.56,6.9174]
[1723603051423,1.72930814,144.59,144.55,6.9179]
[1723603051628,12.86,144.6,144.56,6.9172]
[1723603051924,19.775,144.62,144.57,6.9169]
[1723603053900,8.64432382,144.61,144.57,6.9169]
[1723603054119,1.72923471,144.6,144.56,6.9175]
[1723603054910,8.64483471,144.6,144.55,6.9179]
[1723603055918,19.90199,144.59,144.53,6.9186]
[1723603056124,12.86,144.57,144.51,6.2706]
[1723603056310,21.7295453,144.58,144.5,15.1096]
[1723603056311,12.86,144.55,144.5,15.1096]
[1723603056514,1.72997825,144.54,144.47,22.6112]
[1723603057200,1.72997825,144.54,144.51,6.9199]
[1723603057799,12.86,144.55,144.47,22.6112]
[1723603058000,0.12549,144.56,144.53,6.9189]
[1723603058204,0.12549,144.56,144.47,22.6112]
[1723603058205,0.25098,144.56,144.52,6.9194]
[1723603058843,7.16848,144.56,144.51,6.9198]
[1723603059052,6.9191,144.53,144.48,6.9209]
[1723603059243,1.73025833,144.52,144.48,6.9209]
[1723603059406,1.73025538,144.51,144.48,6.9209]
[1723603059907,39.25399,144.54,144.49,6.9207]
[1723603060214,7.04399,144.54,144.49,6.9207]
[1723603061110,8.77421725,144.54,144.49,6.9207]
[1723603061302,7.04399,144.54,144.49,6.9207]
[1723603062608,6.919,144.53,144.49,6.9207]
[1723603062817,8.6499297,144.52,144.47,16.1112]
[1723603063021,1.73034506,144.51,144.47,6.9216]
[1723603065621,6.9197,144.52,144.47,6.9216]
[1723603065935,1.73034172,144.51,144.47,6.9216]
[1723603066811,51.92,144.51,144.46,6.9222]
[1723603067011,39.50587,144.52,144.47,6.9218]
[1723603067209,15.9182,144.53,144.43,22.0637]
[1723603067419,20.0,144.52,144.49,6.9208]
[1723603067622,22.8372,144.53,144.49,6.9208]
[1723603067819,22.8372,144.53,144.48,6.9211]
[1723603068428,0.12549,144.54,144.45,32.21]
[1723603068613,15.0997,144.56,144.45,32.21]
[1723603068820,6.9185,144.54,144.49,6.9207]
[1723603070135,6.9196,144.52,144.44,0.25098]
[1723603070436,1.73026852,144.51,144.44,20.0]
[1723603070747,8.65016852,144.51,144.47,6.9217]
[1723603070935,6.9218,144.48,144.43,22.0637]
[1723603071125,6.9208,144.49,144.44,6.9228]
[1723603071361,1.73056111,144.48,144.43,22.0637]
[1723603071623,1.73056111,144.48,144.45,6.9227]
[1723603071939,1.73052934,144.49,144.46,6.9222]
[1723603072234,7.04449,144.53,144.49,6.9208]
[1723603072413,20.0,144.52,144.49,6.9208]
[1723603072736,13.46729,144.54,144.49,6.9208]
[1723603072934,20.0,144.53,144.5,6.9203]
[1723603073118,47.3097,144.56,144.43,54.2737]
[1723603073119,54.2273,144.56,144.51,6.9198]
[1723603073307,15.0997,144.56,144.45,32.21]
[1723603073511,6.9174,144.57,144.52,6.9192]
[1723603074636,20.0,144.56,144.53,6.9188]
[1723603074845,20.0,144.57,144.53,6.9188]
[1723603075024,20.0,144.57,144.54,6.9184]
[1723603075345,20.0,144.58,144.54,6.9184]
[1723603076538,26.9166,144.58,144.54,6.9184]
[1723603077341,26.9166,144.58,144.54,5.9184]
[1723603079143,26.9166,144.58,144.53,6.9189]
[1723603079323,1.72956949,144.57,144.53,6.9189]
[1723603079521,8.64666949,144.57,144.53,6.9189]
[1723603079937,8.64666949,144.57,144.52,6.9193]
[1723603080340,26.9166,144.58,144.54,6.9183]
[1723603080524,7.04159,144.59,144.54,6.9183]
[1723603080723,6.9166,144.58,144.54,6.9183]
[1723603081915,1.72957132,144.57,144.53,6.9189]
[1723603082741,6.9166,144.58,144.53,6.9189]
[1723603082918,0.12549,144.59,144.54,6.9183]
[1723603083244,21.85501186,144.59,144.54,6.9183]
[1723603083546,28.77141186,144.59,144.54,6.9183]
[1723603084047,41.65141186,144.59,144.54,6.9183]
[1723603085344,41.65141186,144.59,144.49,35.9553]
[1723603085345,0.12549,144.58,144.49,23.0753]
[1723603085532,6.9179,144.56,144.51,6.9197]
[1723603085732,1.72980575,144.55,144.51,6.9197]
[1723603086647,1.72980575,144.55,144.52,6.9194]
[1723603087545,19.7971,144.57,144.52,6.9194]
[1723603088249,1.72979354,144.56,144.52,6.9194]
[1723603088426,19.7971,144.57,144.52,6.9194]
[1723603088821,1.72979566,144.56,144.52,6.9194]
[1723603089023,19.7971,144.57,144.52,6.9194]
[1723603089224,1.7297938,144.56,144.52,6.9194]
[1723603089528,1.72979412,144.55,144.51,6.9198]
[1723603089727,1.7299783,144.54,144.51,6.9198]
[1723603089939,12.88,144.55,144.51,6.9198]
[1723603090140,12.88,144.57,144.53,6.9189]
[1723603091139,1.72978311,144.56,144.52,6.9193]
[1723603091655,12.88,144.57,144.53,6.9189]
[1723603092754,67.0284367,144.58,144.54,6.9183]
[1723603092925,20.0,144.57,144.54,6.9183]
[1723603093126,12.88,144.62,144.51,12.88]
[1723603093321,12.88,144.62,144.54,22.4945]
[1723603093631,12.88,144.62,144.58,6.9164]
[1723603094332,16.2879,144.64,144.55,12.88]
[1723603094651,29.1679,144.64,144.55,12.88]
[1723603094847,12.88,144.64,144.55,12.88]
[1723603095048,19.7927,144.66,144.61,6.915]
[1723603095255,6.9132,144.65,144.6,6.9155]
[1723603095852,6.9132,144.65,144.61,6.9151]
[1723603096155,32.17,144.67,144.62,6.9146]
[1723603096365,20.0,144.66,144.62,6.9146]
[1723603096525,39.0823,144.67,144.62,6.9146]
[1723603096723,6.9123,144.67,144.62,6.9146]
[1723603097161,6.9118,144.68,144.63,6.914]
[1723603098858,20.0,144.67,144.63,6.914]
[1723603099033,21.72839604,144.67,144.6,22.807]
[1723603099233,20.37647,144.68,144.6,22.807]
[1723603099533,45.0,144.67,144.6,22.807]
[1723603100063,1.72862861,144.66,144.62,6.9145]
[1723603100837,6.9123,144.67,144.62,6.9145]
[1723603103759,1.72848798,144.66,144.62,6.9145]
[1723603104165,1.72848798,144.66,144.6,22.807]
[1723603104342,20.0,144.69,144.6,22.807]
[1723603104859,20.0,144.69,144.65,6.9131]
[1723603105963,6.9104,144.71,144.66,6.9127]
[1723603106142,49.4426,144.74,144.62,15.1316]
[1723603106471,49.4426,144.74,144.67,6.9122]
[1723603107143,6.9109,144.7,144.65,6.9131]
[1723603107576,6.9109,144.7,144.66,6.9126]
[1723603107871,6.9103,144.72,144.67,6.9121]
[1723603108044,6.9094,144.73,144.64,15.8512]
[1723603108248,20.0,144.72,144.65,0.12549]
[1723603108440,20.0,144.72,144.64,15.8512]
[1723603108885,6.9094,144.73,144.68,6.9117]
[1723603109451,8.63784995,144.72,144.67,6.9122]
[1723603109956,6.9099,144.72,144.67,6.9122]
[1723603111067,6.9099,144.72,144.68,6.9117]
[1723603111561,6.9094,144.73,144.69,6.2069]
[1723603111755,6.909,144.74,144.69,6.2069]
[1723603111961,20.0,144.75,144.7,15.9388]
[1723603112564,6.9083,144.76,144.71,6.9103]
[1723603112764,20.0,144.75,144.71,6.9103]
[1723603113554,6.9083,144.76,144.71,6.9103]
[1723603114566,39.39024224,144.8,144.7,15.9388]
[1723603114765,6.9074,144.78,144.73,6.9089]
[1723603115078,20.0,144.77,144.73,6.9089]
[1723603115474,20.0,144.77,144.7,15.9388]
[1723603115657,6.9081,144.76,144.7,15.9388]
[1723603115978,8.63536191,144.76,144.7,15.9388]
[1723603116155,6.9076,144.77,144.72,6.9095]
[1723603116683,6.9071,144.78,144.73,6.9093]
[1723603116854,20.0,144.77,144.73,6.9093]
[1723603117357,26.9075,144.77,144.72,6.9097]
[1723603118084,1.72722723,144.76,144.72,6.9097]
[1723603118251,26.9075,144.77,144.72,6.9097]
[1723603118647,6.908,144.76,144.72,6.9097]
[1723603119577,26.9075,144.77,144.73,6.9093]
[1723603120279,26.9076,144.77,144.72,6.9098]
[1723603122063,8.63425628,144.78,144.73,6.9093]
[1723603122256,6.9071,144.78,144.73,6.9089]
[1723603122466,6.9071,144.78,144.74,6.9088]
[1723603123180,12.84,144.79,144.74,6.9088]
[1723603123181,19.7466,144.79,144.74,6.9088]
[1723603123868,6.9066,144.79,144.74,6.9088]
[1723603124052,6.9055,144.82,144.75,15.2958]
[1723603124252,6.905,144.83,144.78,6.9069]
[1723603125659,20.05983744,144.86,144.77,12.84]
[1723603125968,55.45628916,144.88,144.76,32.20549]
[1723603126286,6.9032,144.86,144.81,6.9054]
[1723603126492,17.2531,144.91,144.82,16.1129]
[1723603126781,6.9024,144.88,144.82,16.1129]
[1723603127168,6.9027,144.87,144.82,16.1129]
[1723603127361,6.9027,144.87,144.82,23.0176]
[1723603128687,6.9023,144.88,144.83,6.9046]
[1723603128889,20.0,144.87,144.83,6.9046]
[1723603129599,49.52859736,144.92,144.82,48.1929]
[1723603129600,8.04396767,144.92,144.82,48.1929]
[1723603129774,6.9009,144.91,144.86,6.9032]
[1723603130880,7.7275891,144.92,144.87,6.9027]
[1723603131686,6.9008,144.91,144.86,6.9031]
[1723603132181,6.9008,144.91,144.87,6.9027]
[1723603132384,7.7275891,144.92,144.87,6.9027]
[1723603132968,6.9008,144.91,144.86,6.9031]
[1723603133391,6.9008,144.91,144.87,6.9027]
[1723603133602,6.9008,144.91,144.86,6.9031]
[1723603134468,8.62625159,144.91,144.86,6.9031]
[1723603134669,52.08,144.9,144.83,6.5365]
[1723603134873,6.9032,144.86,144.83,6.5365]
[1723603135172,6.9028,144.87,144.83,6.5365]
[1723603135375,32.08,144.88,144.83,6.5365]
[1723603135563,38.9826,144.88,144.83,13.441]
[1723603135767,1.72598164,144.87,144.83,6.5365]
[1723603135991,6.9027,144.87,144.83,6.5365]
[1723603136279,38.9823,144.88,144.83,13.4411]
[1723603137294,8.62867264,144.87,144.83,6.5365]
[1723603137671,32.08,144.88,144.84,6.904]
[1723603138093,52.02729,144.89,144.84,6.904]
[1723603138305,20.0,144.88,144.84,6.904]
[1723603138666,20.0,144.88,144.83,13.441]
[1723603138667,26.9023,144.88,144.83,13.441]
[1723603141291,20.0,144.88,144.83,13.441]
[1723603141483,20.0,144.89,144.86,6.903]
[1723603141685,20.0,144.9,144.86,6.903]
[1723603142476,6.9012,144.91,144.86,6.903]
[1723603142674,6.9014,144.9,144.85,6.9036]
[1723603142995,6.9017,144.89,144.84,6.904]
[1723603143489,8.62797507,144.88,144.83,13.441]
[1723603143799,1.72567507,144.88,144.83,6.5365]
[1723603144095,0.12549,144.87,144.83,6.5365]
[1723603144292,45.25098,144.87,144.83,6.5365]
[1723603144499,51.9027,144.87,144.83,6.5365]
[1723603144705,6.9027,144.87,144.83,6.5365]
[1723603144895,0.25098,144.89,144.83,6.5365]
[1723603145202,66.85142377,144.89,144.83,6.5365]
[1723603145388,0.12549,144.87,144.82,16.1129]
[1723603145589,6.9032,144.86,144.82,16.1129]
[1723603145777,6.9028,144.87,144.82,23.0179]
[1723603146165,32.08,144.88,144.82,23.0179]
[1723603146166,6.9032,144.86,144.82,23.0179]
[1723603146372,6.9032,144.86,144.82,16.1129]
[1723603146571,32.08,144.88,144.82,16.1129]
[1723603146796,20.0,144.87,144.82,16.1129]
[1723603147372,6.9035,144.86,144.82,16.1129]
[1723603147572,6.9032,144.86,144.82,16.1129]
[1723603148903,6.9032,144.86,144.82,23.0179]
[1723603149278,26.9028,144.87,144.82,23.0179]
[1723603150380,6.9033,144.86,144.82,16.1129]
[1723603151099,20.0,144.87,144.84,6.904]
[1723603151410,20.0,144.88,144.84,6.904]
[1723603151596,20.0,144.89,144.83,6.9045]
[1723603152285,20.0,144.89,144.82,16.1129]
[1723603152286,20.0,144.89,144.84,6.9039]
[1723603152685,6.9018,144.89,144.85,6.9036]
[1723603153007,6.9013,144.9,144.86,6.4154]
[1723603153379,0.8271891,144.92,144.87,6.9027]
[1723603153795,7.7278891,144.92,144.87,6.9027]
[1723603154201,6.9008,144.91,144.88,15.4078]
[1723603154909,7.7275891,144.92,144.88,15.4078]
[1723603157010,0.8271891,144.92,144.89,6.9017]
[1723603157504,0.8271891,144.92,144.88,15.4078]
[1723603157682,6.9009,144.91,144.88,15.4078]
[1723603160209,0.8271891,144.92,144.88,15.4078]
[1723603160210,7.7275891,144.92,144.88,22.31]
[1723603160389,0.8271891,144.92,144.88,22.31]
[1723603161009,7.7276891,144.92,144.88,15.4078]
[1723603161435,8.62627748,144.91,144.88,15.4078]
[1723603161821,6.9013,144.9,144.88,15.4078]
[1723603162116,8.62684696,144.9,144.86,6.4154]
[1723603162296,1.72574428,144.89,144.84,16.0876]
[1723603162609,26.9013,144.9,144.85,6.9032]
[1723603162818,26.9013,144.9,144.86,6.9031]
[1723603164511,26.9013,144.9,144.85,6.9036]
[1723603165522,6.9018,144.89,144.85,6.9036]
[1723603165699,6.9028,144.87,144.84,16.0876]
[1723603166825,6.9022,144.89,144.84,16.0876]
[1723603167204,6.9023,144.88,144.84,22.9917]
[1723603167696,1.72594589,144.87,144.84,16.0876]
[1723603167897,1.72594589,144.87,144.82,6.3646]
[1723603168102,8.62941393,144.86,144.82,6.3646]
[1723603168300,1.72615439,144.85,144.82,6.3646]
[1723603168526,6.9041,144.84,144.81,15.5108]
[1723603169027,6.9038,144.85,144.81,15.5108]
[1723603170104,32.08,144.88,144.81,15.5108]
[1723603170320,20.0,144.87,144.82,6.9047]
[1723603170627,6.9036,144.86,144.81,15.5108]
[1723603170999,6.9036,144.86,144.81,22.4163]
[1723603172917,6.9036,144.86,144.82,6.905]
[1723603173093,6.9036,144.86,144.81,22.4163]
[1723603175701,26.9028,144.87,144.82,6.905]
[1723603175902,39.7328,144.87,144.82,6.905]
[1723603176123,39.7328,144.87,144.83,6.9042]
[1723603176124,32.83,144.87,144.83,6.9042]
[1723603177603,20.0,144.87,144.83,6.9042]
[1723603177900,19.7317,144.89,144.85,6.9035]
[1723603178105,12.83,144.89,144.84,6.1645]
[1723603178325,12.83,144.89,144.86,6.9029]
[1723603178527,12.83,144.89,144.84,6.1645]
[1723603178528,6.9017,144.9,144.85,6.9036]
[1723603178717,6.9017,144.9,144.84,6.1645]
[1723603178718,6.9036,144.85,144.84,6.1645]
[1723603178927,19.7328,144.87,144.84,6.1645]
[1723603179430,12.83,144.87,144.84,6.1645]
[1723603181632,6.9023,144.88,144.84,6.1645]
[1723603182140,12.83,144.89,144.84,13.0685]
[1723603182141,19.7318,144.89,144.84,13.0685]
[1723603182428,20.0,144.88,144.84,13.0685]
[1723603182814,26.9023,144.88,144.84,13.0685]
[1723603183732,20.0,144.88,144.84,13.0685]
[1723603183967,19.7318,144.89,144.84,13.0685]
[1723603184541,6.9023,144.88,144.84,13.0685]
[1723603186511,8.62866469,144.87,144.84,6.1645]
[1723603187438,6.9029,144.87,144.84,6.1645]
[1723603187640,6.9022,144.88,144.84,6.1645]
[1723603187840,6.9022,144.88,144.84,13.0686]
[1723603188141,12.83,144.89,144.84,13.0686]
[1723603188142,19.7319,144.89,144.84,13.0686]
[1723603189039,6.9023,144.88,144.84,6.1645]
[1723603191549,6.9029,144.87,144.84,6.1645]
[1723603192331,6.9022,144.88,144.84,6.1645]
[1723603192952,19.7318,144.89,144.84,13.0685]
[1723603194035,6.9023,144.88,144.84,13.0685]
[1723603197545,6.9027,144.87,144.84,6.1645]
[1723603197946,1.72594341,144.86,144.84,6.1645]
[1723603198133,19.7328,144.87,144.84,6.1645]
[1723603198345,19.7318,144.89,144.84,6.1645]
[1723603199856,19.7318,144.89,144.84,13.0684]
[1723603200354,6.9013,144.9,144.85,22.55405447]
[1723603200557,20.0,144.89,144.85,22.044]
[1723603200940,26.9019,144.89,144.85,15.1404]
[1723603201137,6.9024,144.88,144.85,15.1404]
[1723603201334,12.83,144.86,144.84,6.1645]
[1723603201661,12.83,144.86,144.81,29.2785]
[1723603201865,1.7262227,144.85,144.81,29.2785]
[1723603202561,8.6299227,144.85,144.81,29.2785]
[1723603202771,12.83,144.82,144.77,6.5941]
[1723603202990,6.9064,144.8,144.77,21.9793]
[1723603203141,1.72673827,144.81,144.77,21.9793]
[1723603203566,12.83,144.82,144.77,21.9793]
[1723603204146,6.9056,144.81,144.77,21.9793]
[1723603204346,21.46297617,144.8,144.77,21.9793]
[1723603204652,19.7361,144.8,144.77,21.9793]
[1723603204962,8.63350596,144.79,144.74,21.9981]
[1723603205171,12.83,144.8,144.74,15.0893]
[1723603205371,6.9053,144.82,144.74,15.0893]
[1723603205545,12.83,144.82,144.78,6.907]
[1723603205946,19.7351,144.82,144.78,6.907]
[1723603206342,12.83,144.82,144.78,6.907]
[1723603207179,19.7351,144.82,144.78,6.907]
[1723603207345,19.7351,144.82,144.79,6.9065]
[1723603207346,12.83,144.82,144.79,6.9065]
[1723603207690,64.85999,144.84,144.79,6.9065]
[1723603207850,64.85999,144.84,144.77,6.907]
[1723603207851,26.9047,144.83,144.77,6.907]
[1723603208173,19.7351,144.82,144.77,6.907]
[1723603208490,21.46171475,144.82,144.77,6.907]
[1723603208653,19.7351,144.82,144.77,6.907]
[1723603208987,6.9051,144.82,144.78,6.907]
[1723603209176,20.0,144.83,144.74,27.9193]
[1723603209475,12.83,144.86,144.76,28.9271]
[1723603209641,20.0,144.85,144.76,28.9271]
[1723603209845,12.83,144.86,144.76,28.9271]
[1723603210988,12.83,144.88,144.79,15.8858]
[1723603211680,12.83,144.86,144.79,15.8858]
[1723603212051,12.83,144.84,144.8,6.906]
[1723603214576,19.7342,144.84,144.79,22.7922]
[1723603214879,19.7342,144.84,144.67,18.68426244]
[1723603214880,12.83,144.8,144.75,15.9923]
[1723603215081,12.83,144.78,144.75,15.9923]
[1723603215455,12.83,144.8,144.75,22.9003]
[1723603215652,12.83,144.8,144.76,6.9079]
[1723603216888,1.72690414,144.79,144.75,22.9006]
[1723603218061,12.83,144.78,144.75,15.9923]
[1723603218262,1.72706389,144.77,144.75,15.9923]
[1723603219768,1.72706465,144.76,144.74,6.6574]
[1723603219968,14.55706465,144.76,144.72,22.3613]
[1723603220286,14.55706465,144.76,144.72,15.4516]
[1723603220656,12.83,144.74,144.72,15.4516]
[1723603220855,12.83,144.74,144.7,13.3397]
[1723603221350,1.72754528,144.73,144.7,13.3397]
[1723603222080,1.72756741,144.72,144.69,23.2668]
[1723603222288,14.55756741,144.72,144.69,6.9112]
[1723603222955,12.83,144.74,144.69,6.9112]
[1723603226572,12.83,144.72,144.66,22.7845]
[1723603226792,12.83,144.7,144.66,29.6972]
[1723603226979,1.72795753,144.69,144.66,29.6972]
[1723603227565,14.55798895,144.7,144.67,6.9122]
[1723603227777,12.83,144.7,144.67,6.9122]
[1723603227997,39.0495,144.73,144.68,6.9115]
[1723603228292,7.03409,144.75,144.7,6.9103]
[1723603228593,20.0,144.74,144.7,6.9103]
[1723603228773,39.0479,144.77,144.67,0.12549]
[1723603228973,6.9079,144.77,144.72,6.9095]
[1723603229173,6.9071,144.78,144.73,6.9093]
[1723603230159,20.0,144.77,144.73,6.9093]
[1723603230474,26.9075,144.77,144.72,6.9098]
[1723603231274,26.9075,144.77,144.7,6.9108]
[1723603231275,6.9085,144.75,144.7,6.9108]
[1723603231668,6.908,144.76,144.71,6.9103]
[1723603231974,59.0475,144.77,144.72,6.9098]
[1723603232187,20.0,144.77,144.73,6.9093]
[1723603233480,26.9075,144.77,144.72,6.9097]
[1723603233694,6.9075,144.77,144.72,6.9097]
[1723603233891,6.9071,144.78,144.73,6.9093]
[1723603234394,0.37647,144.79,144.72,22.8361]
[1723603234581,0.12549,144.79,144.72,22.8361]
[1723603234900,45.50196,144.8,144.75,6.9084]
[1723603235201,45.37647,144.8,144.75,6.9084]